fUST/lending_fUST_20240326
["ID","MTS","AMOUNT","RATE_DAILY","PERIOD"]
[320588374,1711462238202,-155.05426899,0.00017927,2]
[320588376,1711462238212,-302.68593779,0.00017927,2]
[320588378,1711462238222,-282.04459063,0.00017928,2]
[320588380,1711462238231,-155.05426899,0.00017928,2]
[320588382,1711462238241,-155.05426899,0.00017929,2]
[320588384,1711462238251,-155.05426899,0.00017929,2]
[320588386,1711462238261,-1368.87844563,0.00018083,2]
[320588597,1711462240431,-23531.12155437,0.00018083,2]
[320588599,1711462240441,-971.00300921,0.000189,2]
[320588601,1711462240451,-373.61075499,0.00019078,2]
[320588603,1711462240460,-20135.71611565,0.00019176,2]
[320588923,1711462243505,-2621.23749676,0.00019176,2]
[320588926,1711462243517,-18801.30765006,0.00019176,2]
[320588929,1711462243529,-4513.42994113,0.00019176,2]
[320588997,1711462244225,-22456.32816612,0.00019176,2]
[320588999,1711462244235,-500.0,0.00019178,2]
[320589001,1711462244244,-651.32,0.00019178,2]
[320589003,1711462244254,-500.0,0.00019178,2]
[320589005,1711462244264,-3042.35,0.00019178,2]
[320589007,1711462244274,-500.0,0.00019178,2]
[320589009,1711462244284,-500.0,0.00019178,2]
[320589011,1711462244293,-1062.15,0.00019178,2]
[320589013,1711462244303,-500.0,0.00019178,2]
[320589015,1711462244312,-500.0,0.00019178,2]
[320589017,1711462244322,-500.0,0.00019178,2]
[320589019,1711462244332,-603.25152225,0.00019178,2]
[320589021,1711462244342,-500.0,0.00019178,2]
[320589023,1711462244353,-500.0,0.00019178,2]
[320589025,1711462244363,-1604.22,0.00019178,2]
[320589027,1711462244372,-4900.8,0.00019178,2]
[320589029,1711462244381,-954.3,0.00019178,2]
[320589031,1711462244390,-500.28131648,0.00019178,2]
[320589033,1711462244399,-1033.36,0.00019178,2]
[320589035,1711462244409,-546.95,0.00019178,2]
[320589037,1711462244419,-673.55,0.00019178,2]
[320589039,1711462244428,-500.0,0.00019178,2]
[320589041,1711462244437,-500.0,0.00019178,2]
[320589043,1711462244446,-500.0,0.00019178,2]
[320589045,1711462244455,-500.0,0.00019178,2]
[320589047,1711462244464,-500.0,0.00019178,2]
[320589049,1711462244475,-500.0,0.00019178,2]
[320589051,1711462244485,-500.0,0.00019178,2]
[320589053,1711462244494,-709.67,0.00019178,2]
[320589055,1711462244503,-709.67,0.00019178,2]
[320589057,1711462244512,-709.67,0.00019178,2]
[320589059,1711462244521,-709.67,0.00019178,2]
[320589061,1711462244530,-709.67,0.00019178,2]
[320589063,1711462244539,-709.67,0.00019178,2]
[320589065,1711462244549,-546.62,0.00019178,2]
[320589067,1711462244558,-7424.93,0.00019178,2]
[320589069,1711462244567,-500.0,0.00019178,2]
[320589071,1711462244576,-500.0,0.00019178,2]
[320589073,1711462244585,-752.62,0.00019178,2]
[320589075,1711462244594,-500.0,0.00019178,2]
[320589077,1711462244605,-500.0,0.00019178,2]
[320589079,1711462244614,-1005.82,0.00019178,2]
[320589081,1711462244623,-3494.1,0.00019178,2]
[320589083,1711462244633,-500.0,0.00019178,2]
[320589085,1711462244643,-857.41,0.00019178,2]
[320589087,1711462244653,-500.0,0.00019178,2]
[320589089,1711462244662,-1753.29,0.00019178,2]
[320589091,1711462244671,-1298.29,0.00019178,2]
[320589093,1711462244680,-500.0,0.00019178,2]
[320589095,1711462244689,-2259.18746012,0.00019178,2]
[320589101,1711462244952,500.0,0.00017509,2]
[320589841,1711462252638,161.05745809,0.00017509,2]
[320590759,1711462262790,500.0,0.00017509,2]
[320592448,1711462280821,500.0,0.00017509,2]
[320594543,1711462305008,500.0,0.00017509,2]
[320596335,1711462326817,500.0,0.00017509,2]
[320596511,1711462350805,500.0,0.00017509,2]
[320596512,1711462370919,500.0,0.00017509,2]
[320596513,1711462386837,500.0,0.00017509,2]
[320596514,1711462406820,389.29000851,0.00017509,2]
[320596519,1711463016931,28637.64964084,0.00017509,2]
[320596520,1711463189306,24900.0,0.00017134,2]
[320596540,1711463306203,250.0,0.00017254,2]
[320596541,1711463330472,2333.5180503,0.00017024,2]
[320596542,1711463332812,2324.2591423,0.00017024,2]
[320596543,1711463349861,242.198498,0.00017023,2]
[320596593,1711463432572,-155.00930056,0.00018007,2]
[320596595,1711463432582,-187.35685752,0.00018007,2]
[320596597,1711463432591,-1264.68313104,0.00018007,2]
[320596599,1711463432600,-155.00930056,0.00018007,2]
[320596601,1711463432610,-291.43545866,0.00018007,2]
[320596603,1711463432619,-214.77448763,0.00018007,2]
[320596605,1711463432629,-453.39161185,0.00018008,2]
[320596607,1711463432638,-225.0111954,0.00018009,2]
[320596609,1711463432647,-543.23865678,0.00018009,2]
[320596612,1711463432661,-377.78384958,0.00018009,2]
[320596614,1711463432674,-3279.3043807,0.00018009,2]
[320596616,1711463432684,-155.00930056,0.0001801,2]
[320596618,1711463432693,-1889.35512473,0.0001801,2]
[320596620,1711463432703,-1610.84561279,0.0001801,2]
[320596622,1711463432713,-155.00930056,0.00018011,2]
[320596624,1711463432722,-864.59866328,0.00018011,2]
[320596626,1711463432731,-13591.09586223,0.00018011,2]
[320596628,1711463432743,-6977.13866674,0.00018011,2]
[320596738,1711463433872,309.95859256,0.00014407,2]
[320596816,1711463438514,-155.00930056,0.00018006,2]
[320596818,1711463438524,-160.91489604,0.00018006,2]
[320596820,1711463438534,-155.00930056,0.00018006,2]
[320596822,1711463438543,-205.33441189,0.00018006,2]
[320596824,1711463438553,-282.04459063,0.00018006,2]
[320596826,1711463438562,-829.43821251,0.00018007,2]
[320596828,1711463438575,-2615.51199487,0.00018007,2]
[320596830,1711463438585,-26821.04190164,0.00018011,2]
[320596832,1711463438594,-281.16717003,0.00018012,2]
[320596834,1711463438603,-931.91632762,0.00018012,2]
[320596836,1711463438613,-1478.86606329,0.00018012,2]
[320596838,1711463438622,-686.05454832,0.00018013,2]
[320596840,1711463438631,-302.68593779,0.00018014,2]
[320596842,1711463438642,-1654.73318388,0.00018027,2]
[320596844,1711463438651,-2000.0,0.00018032,2]
[320596845,1711463438660,-1002.62544318,0.00018133,2]
[320596847,1711463438669,-472.40292663,0.00018145,2]
[320596849,1711463438682,-270.55201027,0.00018174,2]
[320596851,1711463438692,-187.78507347,0.00018174,2]
[320596853,1711463438702,-204.80548194,0.00018174,2]
[320596855,1711463438711,-309.79863167,0.00018174,2]
[320596857,1711463438720,-368.85641746,0.00018174,2]
[320596858,1711463438730,-2476.61654689,0.00018174,2]
[320596860,1711463438739,-309.79863167,0.00018174,2]
[320596862,1711463438748,-300.63685637,0.00018174,2]
[320596864,1711463438758,-201.62502971,0.00018174,2]
[320596866,1711463438767,-410.43305328,0.00018174,2]
[320596868,1711463438776,-1654.73318385,0.0001829,2]
[320596870,1711463438785,-1654.73318385,0.00018553,2]
[320596872,1711463438794,-2000.0,0.00018804,2]
[320596874,1711463438803,-1654.73318385,0.00018815,2]
[320596876,1711463438813,-12031.41046732,0.000189,2]
[320596878,1711463438822,-1133.05701117,0.000189,2]
[320596879,1711463438831,-6683.41973998,0.00019,2]
[320597074,1711463440461,-535.51624697,0.00018005,2]
[320597075,1711463440470,-838.47947192,0.00018006,2]
[320597464,1711463443654,-192.15217558,0.00018005,2]
[320597466,1711463443663,-302.68593779,0.00018005,2]
[320597468,1711463443672,-463.30083456,0.00018006,2]
[320597470,1711463443683,-50423.26306812,0.00019,2]
[320597472,1711463443692,-307.2888307,0.00019,2]
[320597474,1711463443700,-153.0,0.00019,2]
[320597476,1711463443709,-201.9518537,0.00019,2]
[320597478,1711463443719,-153.0,0.00019,2]
[320597480,1711463443728,-153.0,0.00019,2]
[320597483,1711463443737,-153.0,0.00019,2]
[320597486,1711463443747,-306.0,0.00019,2]
[320597489,1711463443756,-153.0,0.00019,2]
[320597491,1711463443765,-249.465262,0.00019,2]
[320597494,1711463443774,-153.0,0.00019,2]
[320597496,1711463443782,-156.1352698,0.00019,2]
[320597498,1711463443791,-1654.73318385,0.00019078,2]
[320597500,1711463443800,-30231.73674964,0.00019078,2]
[320597502,1711463443809,-153.0,0.00019078,2]
[320597504,1711463443819,-153.0,0.00019078,2]
[320597506,1711463443828,-153.0,0.00019078,2]
[320597508,1711463443836,-153.0,0.00019078,2]
[320597510,1711463443846,-215.79813474,0.00019175,2]
[320597512,1711463443854,-1573.60018062,0.00019175,2]
[320597514,1711463443864,-2605.4070805,0.00019175,2]
[320597516,1711463443873,-34.27607163,0.00019175,2]
[320597519,1711463443884,-574.70908693,0.00019175,2]
[320597521,1711463443893,-1263.84733938,0.00019175,2]
[320597523,1711463443902,-155.24144602,0.00019175,2]
[320597525,1711463443911,-170.58466675,0.00019175,2]
[320597527,1711463443921,-215.76714672,0.00019175,2]
[320597529,1711463443934,-1922.02642136,0.00019175,2]
[320597531,1711463443943,-322.828959,0.00019175,2]
[320597533,1711463443952,-228.1022327,0.00019176,2]
[320597535,1711463443960,-276.93491274,0.00019176,2]
[320597834,1711463447504,-285.05702211,0.00018998,2]
[320597835,1711463447513,-593.77021929,0.00018999,2]
[320597836,1711463447595,-2.91915617,0.00018999,2]
[320597840,1711463447702,-465.84474854,0.00018999,2]
[320599494,1711463525598,168.475155,0.00023288,120]
[320599495,1711463765273,45000.0,0.00018,2]
[320599496,1711463779332,4345.8993506,0.00017605,2]
[320599497,1711463832316,162.096103,0.00017686,2]
[320599500,1711463854830,183.5273698,0.00017686,2]
[320599501,1711464071920,160.54863667,0.00014398,2]
[320599502,1711464122311,313.14814238,0.00014398,2]
[320599503,1711464144281,313.14814238,0.00014398,2]
[320599504,1711464164260,451.64891159,0.00014398,2]
[320599566,1711464556780,1002.2493003,0.00017119,2]
[320599609,1711464632553,-291.43545866,0.00017933,2]
[320599610,1711464632562,-282.04459063,0.00017934,2]
[320599611,1711464632572,-1889.35512473,0.00017934,2]
[320599613,1711464632581,-3444.95020738,0.00017935,2]
[320599615,1711464632590,-199.60334152,0.00017945,2]
[320599617,1711464632599,-41790.59808047,0.00018,2]
[320599618,1711464632608,-11534.79912519,0.00018045,2]
[320599620,1711464632618,-920.5677824,0.00018048,2]
[320599622,1711464632627,-2000.0,0.00018204,2]
[320599624,1711464632638,-701.28996631,0.00018458,2]
[320599626,1711464632647,-413.75333977,0.000189,2]
[320599628,1711464632659,-341.61800101,0.000189,2]
[320599629,1711464632668,-155.00685616,0.00018976,2]
[320599631,1711464632677,-157.07557789,0.00018977,2]
[320599633,1711464632686,-735.21956494,0.00018977,2]
[320599711,1711464638680,-1478.86606329,0.00017932,2]
[320599712,1711464638690,-257.91266585,0.00018977,2]
[320599714,1711464638699,-37100.0,0.00018978,2]
[320599716,1711464638708,-155.6583905,0.00018998,2]
[320599718,1711464638717,-251.79466022,0.00018998,2]
[320599720,1711464638726,-686.75317236,0.00018998,2]
[320599722,1711464638737,-275.31142188,0.00018998,2]
[320599724,1711464638746,-161.67467223,0.00018998,2]
[320599726,1711464638755,-241.41815106,0.00018998,2]
[320599728,1711464638764,-685.72041146,0.00018998,2]
[320599731,1711464638773,-2211.02905705,0.00018999,2]
[320599733,1711464638784,-214.6895479,0.00018999,2]
[320599734,1711464638793,-206.01851131,0.00018999,2]
[320599736,1711464638804,-25847.89327933,0.00019,2]
[320599742,1711464638843,-31258.78952877,0.00019,2]
[320599744,1711464638852,-153.0,0.00019,2]
[320599745,1711464638863,-153.0,0.00019,2]
[320599747,1711464638873,-153.0,0.00019,2]
[320599748,1711464638884,-153.0,0.00019,2]
[320599749,1711464638893,-153.0,0.00019,2]
[320599750,1711464638903,-272.5477895,0.00019,2]
[320599752,1711464638913,-153.1432881,0.00019,2]
[320599755,1711464638923,-153.0,0.00019,2]
[320599757,1711464638933,-153.0,0.00019,2]
[320599759,1711464638943,-153.0,0.00019,2]
[320599760,1711464638954,-153.0,0.00019,2]
[320599762,1711464638964,-306.0,0.00019,2]
[320599765,1711464638975,-154.9558038,0.00019,2]
[320599767,1711464638988,-153.0,0.00019,2]
[320599768,1711464638999,-153.0,0.00019,2]
[320599770,1711464639009,-153.0,0.00019,2]
[320599772,1711464639020,-153.0,0.00019,2]
[320599775,1711464639031,-153.7816236,0.00019,2]
[320599776,1711464639041,-153.0,0.00019,2]
[320599778,1711464639051,-153.0,0.00019,2]
[320599780,1711464639062,-153.0,0.00019,2]
[320599782,1711464639072,-153.0,0.00019,2]
[320599784,1711464639082,-153.0,0.00019,2]
[320599787,1711464639094,-153.0,0.00019,2]
[320599788,1711464639104,-153.0,0.00019,2]
[320599791,1711464639115,-153.0,0.00019,2]
[320599792,1711464639127,-153.0,0.00019,2]
[320599794,1711464639138,-153.0,0.00019,2]
[320599797,1711464639148,-153.0,0.00019,2]
[320599799,1711464639158,-153.0,0.00019,2]
[320599800,1711464639167,-153.0,0.00019,2]
[320599802,1711464639177,-153.0,0.00019,2]
[320599805,1711464639188,-261.1668204,0.00019,2]
[320599807,1711464639199,-153.0,0.00019,2]
[320599808,1711464639210,-153.0,0.00019,2]
[320599811,1711464639222,-153.0,0.00019,2]
[320599813,1711464639236,-153.0,0.00019,2]
[320599815,1711464639248,-153.0,0.00019,2]
[320599817,1711464639258,-153.0,0.00019,2]
[320599818,1711464639268,-154.6369221,0.00019,2]
[320599820,1711464639278,-153.0,0.00019,2]
[320599823,1711464639289,-153.0,0.00019,2]
[320599825,1711464639300,-153.0,0.00019,2]
[320599826,1711464639310,-153.0,0.00019,2]
[320599829,1711464639321,-153.0,0.00019,2]
[320599831,1711464639331,-154.2750513,0.00019,2]
[320599832,1711464639343,-153.0,0.00019,2]
[320599834,1711464639353,-153.0,0.00019,2]
[320599836,1711464639363,-153.0,0.00019,2]
[320599838,1711464639373,-153.0,0.00019,2]
[320599840,1711464639383,-153.0,0.00019,2]
[320599841,1711464639392,-153.0,0.00019,2]
[320599842,1711464639401,-153.0,0.00019,2]
[320599843,1711464639411,-153.0,0.00019,2]
[320599844,1711464639420,-153.0,0.00019,2]
[320599845,1711464639430,-153.0,0.00019,2]
[320599846,1711464639439,-153.0,0.00019,2]
[320599847,1711464639448,-153.0,0.00019052,2]
[320599848,1711464639458,-925.15548627,0.00019078,2]
[320599849,1711464639469,-5474.4961519,0.000191,2]
[320599850,1711464639479,-153.0,0.000191,2]
[320599851,1711464639490,-306.0,0.000191,2]
[320599852,1711464639501,-153.0,0.000191,2]
[320599853,1711464639510,-153.0,0.000191,2]
[320599854,1711464639520,-153.0,0.000191,2]
[320599855,1711464639531,-153.0,0.000191,2]
[320599857,1711464639542,-2000.0,0.00019148,2]
[320599859,1711464639553,-2564.2145524,0.00019169,2]
[320599861,1711464639563,-16.95692417,0.00019176,2]
[320599864,1711464639572,-1417.46301615,0.00019176,2]
[320599866,1711464639582,-417.51231465,0.00019176,2]
[320599868,1711464639591,-211.33899684,0.00019176,2]
[320599869,1711464639601,-863.97812188,0.00019176,2]
[320599871,1711464639611,-295.98463445,0.00019176,2]
[320599874,1711464639621,-931.6812301,0.00019176,2]
[320599884,1711464639715,-251.17786823,0.00019176,2]
[320599886,1711464639728,-205.33441189,0.00019176,2]
[320599888,1711464639741,-535.17564047,0.00019176,2]
[320599890,1711464639751,-1301.14762598,0.00019176,2]
[320599892,1711464639761,-259.7077278,0.00019176,2]
[320599894,1711464639772,-158.86598288,0.00019176,2]
[320599896,1711464639782,-455.55464992,0.00019176,2]
[320599898,1711464639792,-183.65814394,0.00019177,2]
[320599900,1711464639802,-155.52313841,0.00019177,2]
[320599902,1711464639813,-290.77468652,0.00019178,2]
[320599905,1711464639823,-422.31880829,0.00019178,2]
[320599906,1711464639832,-156.17955309,0.00019178,2]
[320599909,1711464639842,-280.52941493,0.00019178,2]
[320599911,1711464639851,-375.85748479,0.00019178,2]
[320599913,1711464639860,-500.0,0.00019178,2]
[320599915,1711464639869,-500.0,0.00019178,2]
[320599917,1711464639879,-500.0,0.00019178,2]
[320599918,1711464639888,-500.0,0.00019178,2]
[320599920,1711464639897,-540.65005754,0.00019178,2]
[320599922,1711464639906,-500.0,0.00019178,2]
[320599924,1711464639916,-305.6973971,0.00019178,2]
[320599926,1711464639925,-500.0,0.00019178,2]
[320599929,1711464639935,-1117.71,0.00019178,2]
[320599931,1711464639944,-598.36819225,0.00019178,2]
[320599933,1711464639954,-500.0,0.00019178,2]
[320599935,1711464639963,-500.0,0.00019178,2]
[320599937,1711464639973,-500.0,0.00019178,2]
[320599939,1711464639987,-1074.02,0.00019178,2]
[320599940,1711464639997,-500.0,0.00019178,2]
[320599943,1711464640007,-920.55,0.00019178,2]
[320599944,1711464640017,-429.70613393,0.00019178,2]
[320599947,1711464640027,-500.0,0.00019178,2]
[320599949,1711464640038,-500.0,0.00019178,2]
[320599950,1711464640047,-500.0,0.00019178,2]
[320599953,1711464640057,-500.0,0.00019178,2]
[320599955,1711464640067,-603.97,0.00019178,2]
[320599957,1711464640077,-500.0,0.00019178,2]
[320599959,1711464640087,-500.0,0.00019178,2]
[320599961,1711464640097,-500.0,0.00019178,2]
[320599963,1711464640107,-500.0,0.00019178,2]
[320599968,1711464640117,-500.0,0.00019178,2]
[320599971,1711464640127,-500.0,0.00019178,2]
[320599975,1711464640138,-779.68,0.00019178,2]
[320599980,1711464640147,-465.26841152,0.00019178,2]
[320599984,1711464640157,-500.0,0.00019178,2]
[320599988,1711464640166,-897.61,0.00019178,2]
[320599992,1711464640176,-500.0,0.00019178,2]
[320599996,1711464640184,-532.79,0.00019178,2]
[320600000,1711464640193,-796.18,0.00019178,2]
[320600003,1711464640203,-500.0,0.00019178,2]
[320600008,1711464640212,-500.0,0.00019178,2]
[320600011,1711464640223,-500.0,0.00019178,2]
[320600016,1711464640242,-500.0,0.00019178,2]
[320600021,1711464640252,-500.0,0.00019178,2]
[320600024,1711464640262,-500.0,0.00019178,2]
[320600028,1711464640272,-392.35592532,0.00019178,2]
[320600031,1711464640283,-291.00386122,0.00019178,2]
[320600035,1711464640293,-500.0,0.00019178,2]
[320600038,1711464640303,-500.0,0.00019178,2]
[320600042,1711464640313,-500.0,0.00019178,2]
[320600045,1711464640322,-500.0,0.00019178,2]
[320600048,1711464640332,-679.01,0.00019178,2]
[320600052,1711464640341,-500.0,0.00019178,2]
[320600054,1711464640350,-500.0,0.00019178,2]
[320600058,1711464640360,-500.0,0.00019178,2]
[320600060,1711464640369,-412.69108758,0.00019178,2]
[320600063,1711464640378,-500.0,0.00019178,2]
[320600066,1711464640387,-653.93,0.00019178,2]
[320600068,1711464640396,-500.0,0.00019178,2]
[320600071,1711464640405,-500.0,0.00019178,2]
[320600074,1711464640415,-500.0,0.00019178,2]
[320600077,1711464640424,-500.0,0.00019178,2]
[320600080,1711464640434,-500.0,0.00019178,2]
[320600084,1711464640446,-500.0,0.00019178,2]
[320600085,1711464640456,-500.0,0.00019178,2]
[320600087,1711464640465,-500.0,0.00019178,2]
[320600089,1711464640475,-500.0,0.00019178,2]
[320600091,1711464640490,-500.0,0.00019178,2]
[320600093,1711464640500,-310.13033864,0.00019178,2]
[320600095,1711464640511,-813.04,0.00019178,2]
[320600096,1711464640521,-500.0,0.00019178,2]
[320600097,1711464640531,-775.45,0.00019178,2]
[320600098,1711464640541,-500.0,0.00019178,2]
[320600099,1711464640551,-500.0,0.00019178,2]
[320600100,1711464640560,-500.0,0.00019178,2]
[320600101,1711464640569,-500.0,0.00019178,2]
[320600103,1711464640579,-500.0,0.00019178,2]
[320600105,1711464640588,-500.0,0.00019178,2]
[320600107,1711464640597,-555.27,0.00019178,2]
[320600109,1711464640607,-501.44360258,0.00019178,2]
[320600111,1711464640616,-500.0,0.00019178,2]
[320600113,1711464640626,-400.8209248,0.00019178,2]
[320600115,1711464640636,-500.0,0.00019178,2]
[320600117,1711464640647,-500.0,0.00019178,2]
[320600119,1711464640657,-500.0,0.00019178,2]
[320600121,1711464640668,-500.0,0.00019178,2]
[320600123,1711464640679,-500.0,0.00019178,2]
[320600126,1711464640689,-500.0,0.00019178,2]
[320600129,1711464640699,-826.95,0.00019178,2]
[320600132,1711464640708,-500.0,0.00019178,2]
[320600135,1711464640717,-500.0,0.00019178,2]
[320600137,1711464640726,-500.0,0.00019178,2]
[320600140,1711464640737,-500.0,0.00019178,2]
[320600144,1711464640747,-150.77970244,0.00019178,2]
[320600147,1711464640757,-500.0,0.00019178,2]
[320600149,1711464640768,-500.0,0.00019178,2]
[320600153,1711464640777,-2915.58,0.00019178,2]
[320600156,1711464640787,-500.0,0.00019178,2]
[320600159,1711464640796,-500.0,0.00019178,2]
[320600161,1711464640806,-513.06,0.00019178,2]
[320600165,1711464640816,-500.0,0.00019178,2]
[320600167,1711464640826,-164.70630417,0.00019178,2]
[320600170,1711464640835,-249.59329983,0.00019178,2]
[320600173,1711464640844,-501.56800748,0.00019178,2]
[320600176,1711464640853,-500.0,0.00019178,2]
[320600178,1711464640863,-1017.89,0.00019178,2]
[320600181,1711464640872,-500.0,0.00019178,2]
[320600184,1711464640882,-500.0,0.00019178,2]
[320600188,1711464640892,-500.0,0.00019178,2]
[320600191,1711464640901,-500.0,0.00019178,2]
[320600194,1711464640911,-500.0,0.00019178,2]
[320600197,1711464640920,-500.0,0.00019178,2]
[320600200,1711464640930,-500.95638156,0.00019178,2]
[320600203,1711464640939,-500.0,0.00019178,2]
[320600206,1711464640949,-500.0,0.00019178,2]
[320600209,1711464640959,-500.0,0.00019178,2]
[320600212,1711464640968,-1280.92,0.00019178,2]
[320600215,1711464640977,-500.0,0.00019178,2]
[320600217,1711464640989,-500.0,0.00019178,2]
[320600220,1711464640999,-500.0,0.00019178,2]
[320600223,1711464641008,-500.0,0.00019178,2]
[320600225,1711464641017,-647.45701986,0.00019178,2]
[320600228,1711464641026,-500.0,0.00019178,2]
[320600231,1711464641036,-500.0,0.00019178,2]
[320600234,1711464641046,-500.0,0.00019178,2]
[320600237,1711464641055,-500.0,0.00019178,2]
[320600241,1711464641065,-770.25,0.00019178,2]
[320600244,1711464641075,-500.0,0.00019178,2]
[320600247,1711464641084,-999.19,0.00019178,2]
[320600250,1711464641093,-151.78496477,0.00019178,2]
[320600253,1711464641102,-1297.21,0.00019178,2]
[320600255,1711464641111,-536.65,0.00019178,2]
[320600258,1711464641121,-500.0,0.00019178,2]
[320600261,1711464641131,-4696.6,0.00019178,2]
[320600265,1711464641140,-2123.22,0.00019178,2]
[320600267,1711464641149,-500.0,0.00019178,2]
[320600270,1711464641159,-500.0,0.00019178,2]
[320600273,1711464641168,-832.47,0.00019178,2]
[320600276,1711464641178,-500.0,0.00019178,2]
[320600279,1711464641187,-617.20923216,0.00019178,2]
[320600282,1711464641197,-500.0,0.00019178,2]
[320600299,1711464641206,-500.0,0.00019178,2]
[320600302,1711464641292,-500.0,0.00019178,2]
[320600305,1711464641303,-500.0,0.00019178,2]
[320600308,1711464641312,-692.25,0.00019178,2]
[320600311,1711464641322,-500.0,0.00019178,2]
[320600314,1711464641332,-500.0,0.00019178,2]
[320600317,1711464641341,-2998.38,0.00019178,2]
[320600320,1711464641351,-503.11948425,0.00019178,2]
[320600323,1711464641360,-500.0,0.00019178,2]
[320600326,1711464641370,-500.0,0.00019178,2]
[320600329,1711464641380,-500.0,0.00019178,2]
[320600331,1711464641389,-500.0,0.00019178,2]
[320600333,1711464641398,-151.0,0.00019178,2]
[320600335,1711464641409,-500.0,0.00019178,2]
[320600337,1711464641418,-151.0,0.00019178,2]
[320600339,1711464641427,-295.120024,0.00019178,2]
[320600341,1711464641437,-3370.39,0.00019178,2]
[320600343,1711464641448,-500.0,0.00019178,2]
[320600345,1711464641458,-500.0,0.00019178,2]
[320600347,1711464641473,-1537.38,0.00019178,2]
[320600350,1711464641486,-500.0,0.00019178,2]
[320600352,1711464641497,-519.62,0.00019178,2]
[320600354,1711464641506,-500.0,0.00019178,2]
[320600356,1711464641516,-914.53,0.00019178,2]
[320600357,1711464641526,-500.0,0.00019178,2]
[320600359,1711464641536,-500.0,0.00019178,2]
[320600362,1711464641546,-500.0,0.00019178,2]
[320600364,1711464641557,-500.0,0.00019178,2]
[320600366,1711464641566,-500.0,0.00019178,2]
[320600368,1711464641575,-500.0,0.00019178,2]
[320600370,1711464641584,-760.38,0.00019178,2]
[320600371,1711464641594,-990.3,0.00019178,2]
[320600374,1711464641604,-3177.45,0.00019178,2]
[320600375,1711464641613,-500.0,0.00019178,2]
[320600377,1711464641623,-524.16,0.00019178,2]
[320600379,1711464641633,-445.21622627,0.00019178,2]
[320600381,1711464641644,-559.67222723,0.00019178,2]
[320600383,1711464641654,-853.95,0.00019178,2]
[320600385,1711464641665,-383.70234426,0.00019178,2]
[320600388,1711464641675,-500.0,0.00019178,2]
[320600389,1711464641686,-500.0,0.00019178,2]
[320600392,1711464641696,-500.0,0.00019178,2]
[320600394,1711464641706,-500.0,0.00019178,2]
[320600395,1711464641715,-500.0,0.00019178,2]
[320600397,1711464641726,-645.49,0.00019178,2]
[320600399,1711464641740,-500.0,0.00019178,2]
[320600401,1711464641750,-567.95,0.00019178,2]
[320600404,1711464641762,-500.0,0.00019178,2]
[320600406,1711464641773,-500.0,0.00019178,2]
[320600408,1711464641783,-1090.002794,0.00019178,2]
[320600409,1711464641794,-1090.002794,0.00019178,2]
[320600411,1711464641804,-1090.002794,0.00019178,2]
[320600413,1711464641814,-1090.002794,0.00019178,2]
[320600415,1711464641823,-500.0,0.00019178,2]
[320600417,1711464641833,-1090.002794,0.00019178,2]
[320600419,1711464641844,-1090.002794,0.00019178,2]
[320600421,1711464641855,-1090.002794,0.00019178,2]
[320600423,1711464641865,-1090.002794,0.00019178,2]
[320600426,1711464641875,-1090.002794,0.00019178,2]
[320600427,1711464641885,-1090.002794,0.00019178,2]
[320600429,1711464641895,-1090.002794,0.00019178,2]